[Event "African Online-ch U20-Open 2021"]
[Site "Online"]
[Date "2021.02.01"]
[Round "7.9"]
[White "van der Merwe, Alexander"]
[Black "Joao Farisse"]
[Result "0-1"]
[ECO "C62"]
[WhiteElo "1655"]
[BlackElo "1574"]
[Annotator "NA RC"]
[PlyCount "158"]
[EventDate "2021.02.01"]
[EventType "swiss"]
[EventCountry "NET"]
[SourceTitle "playchess.com"]
[Source "ChessBase"]
[SourceQuality "1"]
[TimeControl "1500+10"]

1. e4 {[%emt 0:00:00]} e5 {[%emt 0:00:04]} 2. Nf3 {[%emt 0:00:03]} Nc6 {[%emt 0:00:06]} 3. Bb5 {[%emt 0:00:02]} d6 {[%emt 0:00:05]} 4. d4 {[%emt 0:00:22]} exd4 {[%emt 0:00:16]} 5. Nxd4 {[%emt 0:00:04]} Bd7 {[%emt 0:00:18]} 6. O-O {[%emt 0:00:19]} Nf6 {[%emt 0:00:45]} 7. Re1 {[%emt 0:00:19]} Be7 {[%emt 0:00:04]} 8. Nc3 {[%emt 0:00:21]} O-O {[%emt 0:00:07]} 9. Bg5 {[%emt 0:00:27]} Nxd4 {[%emt 0:00:57]} 10. Qxd4 {[%emt 0:00:39]} Bxb5 {[%emt 0:00:24]} 11. Nxb5 {[%emt 0:00:04]} Qd7 {[%emt 0:00:23]} 12. Nc3 {[%emt 0:00:16]} h6 {[%emt 0:00:09]} 13. Bh4 {[%emt 0:00:12]} Qg4 {[%emt 0:00:45]} 14. Bg3 {[%emt 0:00:33]} Nh5 {[%emt 0:00:15]} 15. Nd5 {[%emt 0:00:54]} Bd8 {[%emt 0:00:38]} 16. Re3 {[%emt 0:01:00]} f5 {[%emt 0:01:53]} 17. h3 {[%emt 0:01:32]} Qg6 {[%emt 0:00:53]} 18. exf5 {[%emt 0:01:16]} Qxf5 {[%emt 0:00:34]} 19. Rae1 {[%emt 0:01:27]} Nxg3 {[%emt 0:04:33]} 20. Rxg3 {[%emt 0:00:33]} Qf7 {[%emt 0:03:20]} 21. Re4 {[%emt 0:06:05]} Bf6 {[%emt 0:01:49]} 22. Nxf6+ {[%emt 0:00:52]} Qxf6 {[%emt 0:00:04]} 23. Qe3 {[%emt 0:00:27]} Kh8 {[%emt 0:02:14]} 24. Re6 {[%emt 0:01:07]} Qf5 {[%emt 0:01:41]} 25. c3 {[%emt 0:04:40]} Rf6 {[%emt 0:01:13]} 26. Re7 {[%emt 0:01:05]} Rf7 {[%emt 0:00:27]} 27. a4 {[%emt 0:00:59]} Raf8 {[%emt 0:00:10]} 28. Rxf7 {[%emt 0:00:39]} Rxf7 {[%emt 0:00:04]} 29. b4 {[%emt 0:00:50]} b6 {[%emt 0:00:53]} 30. Rg4 {[%emt 0:00:49]} c5 {[%emt 0:00:32]} 31. Re4 {[%emt 0:00:36]} Kh7 {[%emt 0:00:21]} 32. b5 {[%emt 0:00:17]} Qd7 {[%emt 0:01:03]} 33. Re6 {[%emt 0:00:29]} Kg8 {[%emt 0:01:14]} 34. Qe4 {[%emt 0:00:32]} d5 {[%emt 0:01:01]} 35. Qe5 {[%emt 0:00:13]} d4 {[%emt 0:00:41]} 36. cxd4 {[%emt 0:00:32]} Qxd4 {[%emt 0:00:17]} 37. Qxd4 {[%emt 0:00:15]} cxd4 {[%emt 0:00:04]} 38. Re4 {[%emt 0:00:02]} Rd7 {[%emt 0:00:03]} 39. Kf1 {[%emt 0:00:06]} d3 {[%emt 0:00:22]} 40. Ke1 {[%emt 0:00:02]} d2+ {[%emt 0:00:11]} 41. Kd1 {[%emt 0:00:02]} Kf7 {[%emt 0:00:03]} 42. Re2 {[%emt 0:00:24]} Rd4 {[%emt 0:00:11]} 43. Rxd2 {[%emt 0:00:15]} Rxa4 {[%emt 0:00:02]} 44. Rd7+ {[%emt 0:00:17]} Kf6 {[%emt 0:00:05]} 45. Ke2 {[%emt 0:00:06]} Ra5 {[%emt 0:00:21]} 46. f4 {[%emt 0:00:12]} Rxb5 {[%emt 0:00:08]} 47. Rxa7 {[%emt 0:00:02]} Rb3 {[%emt 0:00:03]} 48. Kf2 {[%emt 0:00:07]} b5 {[%emt 0:00:04]} 49. Rb7 {[%emt 0:00:12]} b4 {[%emt 0:00:07]} 50. Rb5 {[%emt 0:00:02]} g6 {[%emt 0:00:16]} 51. g3 {[%emt 0:00:17]} Rb1 {[%emt 0:00:13]} 52. Kf3 {[%emt 0:00:24]} b3 {[%emt 0:00:17]} 53. Kg4 {[%emt 0:00:06]} h5+ {[%emt 0:00:06]} 54. Kh4 {[%emt 0:00:04]} b2 {[%emt 0:00:07]} 55. Rb6+ {[%emt 0:00:15]} Kf5 {[%emt 0:00:09]} 56. Rb8 {[%emt 0:00:04]} Kf6 {[%emt 0:00:43]} 57. Rb5 {[%emt 0:00:05]} Ke6 {[%emt 0:00:10]} 58. Kg5 {[%emt 0:00:19]} Rg1 {[%emt 0:00:06]} 59. Rb6+ {[%emt 0:00:21]} Kf7 {[%emt 0:00:01]} 60. Rxb2 {[%emt 0:00:06]} Rxg3+ {[%emt 0:00:03]} 61. Kh4 {[%emt 0:00:05]} Rg1 {[%emt 0:00:02]} 62. Rb5 {[%emt 0:00:09]} Rf1 {[%emt 0:00:09]} 63. Kg5 {[%emt 0:00:03]} Rg1+ {[%emt 0:00:02]} 64. Kh6 {[%emt 0:00:09]} Rg3 {[%emt 0:00:25]} 65. Rg5 {[%emt 0:00:24]} Rxh3 {[%emt 0:00:06]} 66. Rxg6 {[%emt 0:00:09]} Rh1 {[%emt 0:00:18]} 67. Ra6 {[%emt 0:00:12]} h4 {[%emt 0:00:03]} 68. Kg5 {[%emt 0:00:07]} h3 {[%emt 0:00:04]} 69. Rh6 {[%emt 0:00:13]} Kg7 {[%emt 0:00:40]} 70. Ra6 {[%emt 0:00:12]} Rg1+ {[%emt 0:00:04]} 71. Kf5 {[%emt 0:00:08]} h2 {[%emt 0:00:04]} 72. Ra7+ {[%emt 0:00:02]} Kf8 {[%emt 0:00:24]} 73. Kf6 {[%emt 0:00:10]} Ke8 {[%emt 0:00:05]} 74. Ra8+ {[%emt 0:00:10]} Kd7 {[%emt 0:00:03]} 75. Ra7+ {[%emt 0:00:03]} Kc6 {[%emt 0:00:03]} 76. f5 {[%emt 0:00:07]} h1=Q {[%emt 0:00:06]} 77. Ke6 {[%emt 0:00:09]} Qd5+ {[%emt 0:00:06]} 78. Kf6 {[%emt 0:00:03]} Qd4+ {[%emt 0:00:03]} 79. Kf7 {[%emt 0:00:02]} Qxa7+ {[%emt 0:00:03]} 0-1

[Event "African Online-ch U20-Open 2021"]
[Site "Online"]
[Date "2021.02.01"]
[Round "7.10"]
[White "Ben Abbes, Ayoub"]
[Black "Sparg, Nathan"]
[Result "0-1"]
[ECO "C02"]
[WhiteElo "1481"]
[BlackElo "1413"]
[Annotator "NA RC"]
[PlyCount "88"]
[EventDate "2021.02.01"]
[EventType "swiss"]
[EventCountry "NET"]
[SourceTitle "playchess.com"]
[Source "ChessBase"]
[SourceQuality "1"]
[TimeControl "1500+10"]

1. e4 {[%emt 0:00:00]} e6 {[%emt 0:00:04]} 2. d4 {[%emt 0:00:04]} d5 {[%emt 0:00:03]} 3. e5 {[%emt 0:00:03]} c5 {[%emt 0:00:08]} 4. c3 {[%emt 0:00:03]} Nc6 {[%emt 0:00:32]} 5. Nf3 {[%emt 0:00:06]} Qb6 {[%emt 0:00:31]} 6. Qb3 {[%emt 0:00:30]} Nge7 {[%emt 0:01:35]} 7. Qxb6 {[%emt 0:00:09]} axb6 {[%emt 0:00:04]} 8. Na3 {[%emt 0:00:03]} cxd4 {[%emt 0:00:52]} 9. Nb5 {[%emt 0:00:21]} Rb8 {[%emt 0:05:22]} 10. Nd6+ {[%emt 0:00:08]} Kd7 {[%emt 0:00:06]} 11. cxd4 {[%emt 0:00:06]} f6 {[%emt 0:00:43]} 12. Be3 {[%emt 0:01:24]} Ng6 {[%emt 0:00:34]} 13. Bd3 {[%emt 0:01:08]} fxe5 {[%emt 0:01:09]} 14. Bxg6 {[%emt 0:00:22]} Bxd6 {[%emt 0:00:21]} 15. dxe5 {[%emt 0:00:13]} Bb4+ {[%emt 0:00:25]} 16. Ke2 {[%emt 0:00:10]} hxg6 {[%emt 0:00:04]} 17. Bxb6 {[%emt 0:00:05]} Rh5 {[%emt 0:01:43]} 18. a3 {[%emt 0:00:10]} Be7 {[%emt 0:00:48]} 19. Rac1 {[%emt 0:00:30]} Ra8 {[%emt 0:01:49]} 20. g4 {[%emt 0:00:48]} Rh3 {[%emt 0:01:25]} 21. Rc3 {[%emt 0:00:17]} Ra6 {[%emt 0:00:09]} 22. Be3 {[%emt 0:00:20]} b5 {[%emt 0:00:57]} 23. Rhc1 {[%emt 0:00:11]} Bb7 {[%emt 0:00:22]} 24. b4 {[%emt 0:00:10]} Bd8 {[%emt 0:01:10]} 25. Bf4 {[%emt 0:00:17]} Bb6 {[%emt 0:00:46]} 26. Bg3 {[%emt 0:00:20]} Ra8 {[%emt 0:00:34]} 27. Ng1 {[%emt 0:00:48]} Rhh8 {[%emt 0:00:07]} 28. Rf3 {[%emt 0:00:18]} Nd4+ {[%emt 0:00:06]} 29. Kd3 {[%emt 0:00:12]} Nxf3 {[%emt 0:00:04]} 30. Nxf3 {[%emt 0:00:02]} Rhf8 {[%emt 0:00:17]} 31. Ke2 {[%emt 0:00:05]} Rac8 {[%emt 0:00:04]} 32. Rd1 {[%emt 0:00:03]} Rc3 {[%emt 0:00:39]} 33. Nh4 {[%emt 0:00:09]} Rxa3 {[%emt 0:00:28]} 34. Nxg6 {[%emt 0:00:03]} Ra2+ {[%emt 0:00:29]} 35. Kf1 {[%emt 0:00:14]} Rf3 {[%emt 0:00:20]} 36. Kg2 {[%emt 0:00:20]} Rb3 {[%emt 0:00:22]} 37. Bh4 {[%emt 0:00:10]} d4+ {[%emt 0:00:39]} 38. Kg1 {[%emt 0:00:07]} Bd5 {[%emt 0:00:03]} 39. Nf8+ {[%emt 0:00:16]} Ke8 {[%emt 0:00:05]} 40. Ng6 {[%emt 0:00:05]} Rab2 {[%emt 0:00:08]} 41. h3 {[%emt 0:00:07]} Rb1 {[%emt 0:00:03]} 42. Rxb1 {[%emt 0:00:03]} Rxb1+ {[%emt 0:00:01]} 43. Kh2 {[%emt 0:00:02]} d3 {[%emt 0:00:05]} 44. Bg5 {[%emt 0:00:03]} Bxf2 {[%emt 0:00:05]} 0-1

[Event "African Online-ch U20-Open 2021"]
[Site "Online"]
[Date "2021.02.01"]
[Round "7.11"]
[White "Shah, Darshan Samir"]
[Black "Selogelo Othata"]
[Result "1-0"]
[ECO "E62"]
[WhiteElo "1502"]
[BlackElo "1725"]
[Annotator "NA RC"]
[PlyCount "77"]
[EventDate "2021.02.01"]
[EventType "swiss"]
[EventCountry "NET"]
[SourceTitle "playchess.com"]
[Source "ChessBase"]
[SourceQuality "1"]
[TimeControl "1500+10"]

1. Nf3 {[%emt 0:00:00]} Nf6 {[%emt 0:00:04]} 2. d4 {[%emt 0:00:08]} g6 {[%emt 0:00:03]} 3. c4 {[%emt 0:00:05]} Bg7 {[%emt 0:00:02]} 4. Nc3 {[%emt 0:00:06]} O-O {[%emt 0:00:04]} 5. g3 {[%emt 0:00:11]} d6 {[%emt 0:00:14]} 6. Bg2 {[%emt 0:00:06]} c6 {[%emt 0:00:02]} 7. O-O {[%emt 0:00:07]} a6 {[%emt 0:00:03]} 8. e4 {[%emt 0:00:07]} Qc7 {[%emt 0:00:12]} 9. Bf4 {[%emt 0:00:23]} Nh5 {[%emt 0:00:11]} 10. Be3 {[%emt 0:00:10]} e5 {[%emt 0:00:07]} 11. dxe5 {[%emt 0:00:19]} dxe5 {[%emt 0:00:05]} 12. Bc5 {[%emt 0:01:55]} Rd8 {[%emt 0:00:13]} 13. Qb3 {[%emt 0:00:18]} Nd7 {[%emt 0:00:08]} 14. Be7 {[%emt 0:01:30]} Re8 {[%emt 0:00:04]} 15. Qa3 {[%emt 0:00:15]} Nb6 {[%emt 0:03:19]} 16. Bd6 {[%emt 0:00:45]} Qd7 {[%emt 0:00:10]} 17. b3 {[%emt 0:00:35]} Qe6 {[%emt 0:00:54]} 18. c5 {[%emt 0:00:36]} Nd7 {[%emt 0:00:12]} 19. Rad1 {[%emt 0:00:39]} h6 {[%emt 0:00:25]} 20. Qb2 {[%emt 0:00:59]} b6 {[%emt 0:04:40]} 21. cxb6 {[%emt 0:00:29]} Nxb6 {[%emt 0:00:09]} 22. Bc5 {[%emt 0:00:04]} Nd7 {[%emt 0:00:55]} 23. Rd6 {[%emt 0:00:40]} Qe7 {[%emt 0:00:10]} 24. Ba3 {[%emt 0:00:03]} c5 {[%emt 0:01:21]} 25. Rfd1 {[%emt 0:00:33]} Bf8 {[%emt 0:00:12]} 26. R6d3 {[%emt 0:00:50]} Qe6 {[%emt 0:01:23]} 27. Nd5 {[%emt 0:00:38]} Qc6 {[%emt 0:01:24]} 28. Qc1 {[%emt 0:01:17]} Nhf6 {[%emt 0:02:40]} 29. Nxf6+ {[%emt 0:01:27]} Nxf6 {[%emt 0:00:08]} 30. Bb2 {[%emt 0:01:09]} Qc7 {[%emt 0:03:22]} 31. Bxe5 {[%emt 0:01:25]} Rxe5 {[%emt 0:00:05]} 32. Nxe5 {[%emt 0:00:03]} Qxe5 {[%emt 0:00:09]} 33. f4 {[%emt 0:00:02]} Qh5 {[%emt 0:00:07]} 34. e5 {[%emt 0:00:07]} Ng4 {[%emt 0:00:05]} 35. h3 {[%emt 0:00:27]} c4 {[%emt 0:01:09]} 36. Rd8 {[%emt 0:00:33]} Rb8 {[%emt 0:01:26]} 37. Qa3 {[%emt 0:00:25]} Be6 {[%emt 0:01:44]} 38. Qxf8+ {[%emt 0:00:06]} Kh7 {[%emt 0:00:07]} 39. Qg8# {[%emt 0:00:02]} 1-0

[Event "African Online-ch U20-Open 2021"]
[Site "Online"]
[Date "2021.02.01"]
[Round "7.13"]
[White "Palmer, Reegan"]
[Black "Mena, Martin"]
[Result "0-1"]
[ECO "A36"]
[WhiteElo "1325"]
[BlackElo "1776"]
[Annotator "NA RC"]
[PlyCount "40"]
[EventDate "2021.02.01"]
[EventType "swiss"]
[EventCountry "NET"]
[SourceTitle "playchess.com"]
[Source "ChessBase"]
[SourceQuality "1"]
[TimeControl "1500+10"]

1. e4 {[%emt 0:00:00]} c5 {[%emt 0:00:10]} 2. c4 {[%emt 0:00:05]} Nc6 {[%emt 0:00:34]} 3. Nc3 {[%emt 0:00:13]} g6 {[%emt 0:00:14]} 4. g3 {[%emt 0:00:07]} Bg7 {[%emt 0:00:05]} 5. Bg2 {[%emt 0:00:03]} e6 {[%emt 0:01:08]} 6. Nge2 {[%emt 0:00:07]} Nge7 {[%emt 0:00:06]} 7. d3 {[%emt 0:00:03]} O-O {[%emt 0:00:20]} 8. O-O {[%emt 0:00:08]} a6 {[%emt 0:00:19]} 9. Be3 {[%emt 0:00:32]} Nd4 {[%emt 0:00:38]} 10. f4 {[%emt 0:00:18]} Rb8 {[%emt 0:00:23]} 11. e5 {[%emt 0:02:31]} Nef5 {[%emt 0:04:48]} 12. Bxd4 {[%emt 0:00:13]} cxd4 {[%emt 0:00:10]} 13. Ne4 {[%emt 0:00:01]} d5 {[%emt 0:01:03]} 14. exd6 {[%emt 0:01:02]} Ne3 {[%emt 0:00:12]} 15. Qb3 {[%emt 0:01:08]} Nxf1 {[%emt 0:00:15]} 16. Rxf1 {[%emt 0:01:22]} f5 {[%emt 0:00:12]} 17. d7 {[%emt 0:00:34]} Qxd7 {[%emt 0:00:17]} 18. Nc5 {[%emt 0:00:10]} Qd6 {[%emt 0:00:04]} 19. Na4 {[%emt 0:00:20]} b5 {[%emt 0:00:10]} 20. c5 {[%emt 0:00:27]} bxa4 {[%emt 0:00:32]} 0-1

[Event "African Online-ch U20-Open 2021"]
[Site "Online"]
[Date "2021.02.01"]
[Round "7.14"]
[White "Potgieter, Edward"]
[Black "George Samir, David"]
[Result "0-1"]
[ECO "B56"]
[WhiteElo "1229"]
[BlackElo "1775"]
[Annotator "NA RC"]
[PlyCount "132"]
[EventDate "2021.02.01"]
[EventType "swiss"]
[EventCountry "NET"]
[SourceTitle "playchess.com"]
[Source "ChessBase"]
[SourceQuality "1"]
[TimeControl "1500+10"]

1. e4 {[%emt 0:00:00]} c5 {[%emt 0:00:03]} 2. Nf3 {[%emt 0:00:03]} d6 {[%emt 0:00:03]} 3. d4 {[%emt 0:00:02]} cxd4 {[%emt 0:00:02]} 4. Nxd4 {[%emt 0:00:02]} Nf6 {[%emt 0:00:02]} 5. Nc3 {[%emt 0:00:03]} Nc6 {[%emt 0:00:03]} 6. Be3 {[%emt 0:00:02]} Ng4 {[%emt 0:00:03]} 7. Bb5 {[%emt 0:04:14]} Nxe3 {[%emt 0:00:29]} 8. fxe3 {[%emt 0:00:04]} Bd7 {[%emt 0:00:10]} 9. O-O {[%emt 0:00:57]} e6 {[%emt 0:00:32]} 10. Qf3 {[%emt 0:01:25]} Ne5 {[%emt 0:00:34]} 11. Bxd7+ {[%emt 0:01:50]} Qxd7 {[%emt 0:00:06]} 12. Qe2 {[%emt 0:00:22]} Be7 {[%emt 0:00:14]} 13. Nf3 {[%emt 0:01:05]} Bf6 {[%emt 0:00:12]} 14. Nxe5 {[%emt 0:03:44]} Bxe5 {[%emt 0:00:04]} 15. Rab1 {[%emt 0:00:32]} O-O {[%emt 0:00:08]} 16. Rfd1 {[%emt 0:00:31]} a6 {[%emt 0:00:09]} 17. Rd3 {[%emt 0:01:06]} Qc7 {[%emt 0:00:15]} 18. g3 {[%emt 0:01:19]} Rac8 {[%emt 0:00:06]} 19. Qd2 {[%emt 0:01:41]} b5 {[%emt 0:00:10]} 20. a3 {[%emt 0:00:33]} Qb6 {[%emt 0:00:30]} 21. Ne2 {[%emt 0:01:14]} Qc6 {[%emt 0:00:18]} 22. Nc3 {[%emt 0:02:28]} Qc5 {[%emt 0:00:21]} 23. Rd1 {[%emt 0:01:22]} b4 {[%emt 0:00:25]} 24. axb4 {[%emt 0:00:37]} Qxb4 {[%emt 0:00:04]} 25. Rb1 {[%emt 0:00:17]} Rb8 {[%emt 0:00:37]} 26. Qc1 {[%emt 0:01:47]} Rfc8 {[%emt 0:00:18]} 27. Ra1 {[%emt 0:00:52]} a5 {[%emt 0:00:23]} 28. Ra4 {[%emt 0:00:47]} Qxb2 {[%emt 0:00:46]} 29. Qxb2 {[%emt 0:00:08]} Rxb2 {[%emt 0:00:05]} 30. Rxa5 {[%emt 0:00:26]} h6 {[%emt 0:00:21]} 31. Nd1 {[%emt 0:00:20]} Rbxc2 {[%emt 0:00:10]} 32. Raa3 {[%emt 0:00:13]} Re2 {[%emt 0:00:15]} 33. Kf1 {[%emt 0:00:07]} Rxh2 {[%emt 0:00:09]} 34. Kg1 {[%emt 0:00:03]} Rcc2 {[%emt 0:00:04]} 35. Ra8+ {[%emt 0:00:08]} Kh7 {[%emt 0:00:05]} 36. Nf2 {[%emt 0:00:05]} Rhxf2 {[%emt 0:00:10]} 37. Rd1 {[%emt 0:00:04]} Rg2+ {[%emt 0:00:06]} 38. Kf1 {[%emt 0:00:06]} Rcf2+ {[%emt 0:00:03]} 39. Ke1 {[%emt 0:00:01]} Bc3+ {[%emt 0:00:09]} 40. Rd2 {[%emt 0:00:05]} Bxd2+ {[%emt 0:00:02]} 41. Kd1 {[%emt 0:00:02]} Bxe3 {[%emt 0:00:03]} 42. Ke1 {[%emt 0:00:07]} d5 {[%emt 0:00:02]} 43. e5 {[%emt 0:00:11]} d4 {[%emt 0:00:05]} 44. g4 {[%emt 0:00:01]} d3 {[%emt 0:00:03]} 45. g5 {[%emt 0:00:03]} d2+ {[%emt 0:00:03]} 46. Kd1 {[%emt 0:00:06]} Rg1+ {[%emt 0:00:06]} 47. Kc2 {[%emt 0:00:02]} d1=Q+ {[%emt 0:00:05]} 48. Kc3 {[%emt 0:00:02]} Bxg5 {[%emt 0:00:05]} 49. Kb4 {[%emt 0:00:05]} Bf4 {[%emt 0:00:03]} 50. Kc5 {[%emt 0:00:06]} Qd5+ {[%emt 0:00:07]} 51. Kb4 {[%emt 0:00:03]} Qxa8 {[%emt 0:00:04]} 52. Kb3 {[%emt 0:00:01]} Bxe5 {[%emt 0:00:03]} 53. Kb4 {[%emt 0:00:02]} g5 {[%emt 0:00:04]} 54. Kb5 {[%emt 0:00:01]} g4 {[%emt 0:00:03]} 55. Kb4 {[%emt 0:00:02]} g3 {[%emt 0:00:03]} 56. Kb5 {[%emt 0:00:01]} g2 {[%emt 0:00:02]} 57. Kb4 {[%emt 0:00:01]} Rb1+ {[%emt 0:00:04]} 58. Kc5 {[%emt 0:00:02]} g1=Q {[%emt 0:00:06]} 59. Kc4 {[%emt 0:00:02]} Rc2+ {[%emt 0:00:05]} 60. Kd3 {[%emt 0:00:04]} Qd5+ {[%emt 0:00:03]} 61. Kxc2 {[%emt 0:00:03]} Qb3+ {[%emt 0:00:03]} 62. Kd2 {[%emt 0:00:02]} Bf4+ {[%emt 0:00:01]} 63. Ke2 {[%emt 0:00:02]} Qg4+ {[%emt 0:00:03]} 64. Kf2 {[%emt 0:00:02]} Rb2+ {[%emt 0:00:02]} 65. Kf1 {[%emt 0:00:04]} Qc4+ {[%emt 0:00:04]} 66. Ke1 {[%emt 0:00:02]} Bg3# {[%emt 0:00:09]} 0-1

[Event "African Online-ch U20-Open 2021"]
[Site "Online"]
[Date "2021.02.01"]
[Round "7.15"]
[White "Ofile Masilo"]
[Black "Darius Patlo Banda"]
[Result "1-0"]
[ECO "D07"]
[WhiteElo "1457"]
[BlackElo "1369"]
[Annotator "NA RC"]
[PlyCount "49"]
[EventDate "2021.02.01"]
[EventType "swiss"]
[EventCountry "NET"]
[SourceTitle "playchess.com"]
[Source "ChessBase"]
[SourceQuality "1"]
[TimeControl "1500+10"]

1. d4 {[%emt 0:00:00]} d5 {[%emt 0:00:05]} 2. c4 {[%emt 0:00:03]} Nc6 {[%emt 0:00:08]} 3. Nf3 {[%emt 0:00:11]} Nf6 {[%emt 0:00:07]} 4. cxd5 {[%emt 0:00:05]} Qxd5 {[%emt 0:00:14]} 5. Nc3 {[%emt 0:00:06]} Qd8 {[%emt 0:00:03]} 6. d5 {[%emt 0:00:18]} Nb4 {[%emt 0:01:03]} 7. Qa4+ {[%emt 0:00:28]} Nc6 {[%emt 0:00:23]} 8. dxc6 {[%emt 0:00:05]} bxc6 {[%emt 0:00:04]} 9. Qxc6+ {[%emt 0:00:32]} Bd7 {[%emt 0:00:04]} 10. Qc4 {[%emt 0:00:15]} e6 {[%emt 0:00:11]} 11. Bf4 {[%emt 0:00:17]} c6 {[%emt 0:00:09]} 12. Rd1 {[%emt 0:00:20]} Nd5 {[%emt 0:00:22]} 13. Bg3 {[%emt 0:00:44]} Bb4 {[%emt 0:00:33]} 14. e4 {[%emt 0:00:27]} Bxc3+ {[%emt 0:00:37]} 15. bxc3 {[%emt 0:00:17]} Nb6 {[%emt 0:00:04]} 16. Qb4 {[%emt 0:01:44]} a5 {[%emt 0:00:19]} 17. Qa3 {[%emt 0:00:36]} Qc8 {[%emt 0:00:52]} 18. Bh4 {[%emt 0:01:10]} f6 {[%emt 0:00:14]} 19. e5 {[%emt 0:00:25]} Nd5 {[%emt 0:00:22]} 20. exf6 {[%emt 0:00:28]} gxf6 {[%emt 0:00:06]} 21. Rxd5 {[%emt 0:00:46]} exd5 {[%emt 0:02:17]} 22. Bxf6 {[%emt 0:00:07]} c5 {[%emt 0:00:08]} 23. Bxh8 {[%emt 0:00:05]} Bg4 {[%emt 0:00:04]} 24. Qa4+ {[%emt 0:00:39]} Kf7 {[%emt 0:00:17]} 25. Ne5+ {[%emt 0:01:19]} 1-0

[Event "African Online-ch U20-Open 2021"]
[Site "Online"]
[Date "2021.02.01"]
[Round "7.16"]
[White "Dutt Dakshesh"]
[Black "Pungo, Honorato"]
[Result "0-1"]
[ECO "D02"]
[WhiteElo "1549"]
[BlackElo "1550"]
[Annotator "NA RC"]
[PlyCount "162"]
[EventDate "2021.02.01"]
[EventType "swiss"]
[EventCountry "NET"]
[SourceTitle "playchess.com"]
[Source "ChessBase"]
[SourceQuality "1"]
[TimeControl "1500+10"]

1. d4 {[%emt 0:00:00]} d5 {[%emt 0:00:03]} 2. Bf4 {[%emt 0:00:07]} e6 {[%emt 0:00:02]} 3. e3 {[%emt 0:00:10]} Nf6 {[%emt 0:00:03]} 4. Bd3 {[%emt 0:00:22]} Nbd7 {[%emt 0:00:08]} 5. Nf3 {[%emt 0:00:33]} c5 {[%emt 0:00:13]} 6. c3 {[%emt 0:00:04]} c4 {[%emt 0:00:03]} 7. Bc2 {[%emt 0:00:10]} b5 {[%emt 0:00:06]} 8. Nbd2 {[%emt 0:00:32]} Be7 {[%emt 0:00:05]} 9. O-O {[%emt 0:00:25]} O-O {[%emt 0:00:04]} 10. Ne5 {[%emt 0:00:12]} Nxe5 {[%emt 0:00:07]} 11. Bxe5 {[%emt 0:00:36]} Nd7 {[%emt 0:00:09]} 12. Bg3 {[%emt 0:00:12]} a5 {[%emt 0:00:14]} 13. b3 {[%emt 0:00:18]} Nb6 {[%emt 0:00:10]} 14. Nf3 {[%emt 0:00:38]} Ba6 {[%emt 0:00:41]} 15. Ne5 {[%emt 0:00:23]} Rc8 {[%emt 0:00:06]} 16. Qd2 {[%emt 0:00:25]} cxb3 {[%emt 0:01:39]} 17. axb3 {[%emt 0:00:31]} b4 {[%emt 0:00:04]} 18. c4 {[%emt 0:01:30]} dxc4 {[%emt 0:00:20]} 19. bxc4 {[%emt 0:00:09]} Nxc4 {[%emt 0:00:11]} 20. Nxc4 {[%emt 0:00:11]} Bxc4 {[%emt 0:00:32]} 21. Rfc1 {[%emt 0:00:49]} b3 {[%emt 0:01:43]} 22. Bd1 {[%emt 0:00:31]} Bb4 {[%emt 0:00:28]} 23. Qb2 {[%emt 0:00:31]} Qd5 {[%emt 0:00:47]} 24. Bf3 {[%emt 0:00:34]} Qb5 {[%emt 0:00:05]} 25. Bd1 {[%emt 0:00:08]} a4 {[%emt 0:00:04]} 26. Rab1 {[%emt 0:01:13]} a3 {[%emt 0:00:19]} 27. Qa1 {[%emt 0:00:02]} b2 {[%emt 0:00:43]} 28. Rxb2 {[%emt 0:00:02]} axb2 {[%emt 0:00:02]} 29. Qxb2 {[%emt 0:00:03]} Be7 {[%emt 0:00:21]} 30. Qd2 {[%emt 0:00:21]} Bb4 {[%emt 0:01:32]} 31. Qb2 {[%emt 0:00:07]} Ra8 {[%emt 0:00:47]} 32. Rb1 {[%emt 0:00:22]} Bd3 {[%emt 0:00:55]} 33. Bc2 {[%emt 0:00:51]} Bxc2 {[%emt 0:00:11]} 34. Qxc2 {[%emt 0:00:06]} Qa4 {[%emt 0:00:18]} 35. Qb2 {[%emt 0:00:56]} Be7 {[%emt 0:00:22]} 36. Qe2 {[%emt 0:00:13]} Qa2 {[%emt 0:00:09]} 37. Qd1 {[%emt 0:00:25]} Rac8 {[%emt 0:00:18]} 38. h3 {[%emt 0:00:18]} Qc2 {[%emt 0:00:29]} 39. Qe1 {[%emt 0:00:30]} h5 {[%emt 0:00:15]} 40. Rd1 {[%emt 0:01:15]} h4 {[%emt 0:00:08]} 41. Bh2 {[%emt 0:00:34]} Ba3 {[%emt 0:00:19]} 42. g3 {[%emt 0:00:17]} Qxd1 {[%emt 0:00:20]} 43. Qxd1 {[%emt 0:00:09]} Rc1 {[%emt 0:00:05]} 44. Qxc1 {[%emt 0:00:02]} Bxc1 {[%emt 0:00:07]} 45. gxh4 {[%emt 0:00:02]} f6 {[%emt 0:00:09]} 46. Kg2 {[%emt 0:00:11]} Kf7 {[%emt 0:00:04]} 47. Kf3 {[%emt 0:00:02]} Rh8 {[%emt 0:00:05]} 48. Bg3 {[%emt 0:00:03]} Ba3 {[%emt 0:00:07]} 49. Kg4 {[%emt 0:00:06]} f5+ {[%emt 0:00:04]} 50. Kf4 {[%emt 0:00:07]} Bd6+ {[%emt 0:00:05]} 51. Kf3 {[%emt 0:00:03]} Bxg3 {[%emt 0:00:06]} 52. fxg3 {[%emt 0:00:13]} Kf6 {[%emt 0:00:05]} 53. Kf4 {[%emt 0:00:03]} Ra8 {[%emt 0:00:07]} 54. g4 {[%emt 0:00:05]} Ra1 {[%emt 0:00:08]} 55. g5+ {[%emt 0:00:11]} Ke7 {[%emt 0:00:06]} 56. h5 {[%emt 0:00:07]} Rb1 {[%emt 0:00:28]} 57. h6 {[%emt 0:00:18]} gxh6 {[%emt 0:00:04]} 58. gxh6 {[%emt 0:00:03]} Kf6 {[%emt 0:00:19]} 59. h4 {[%emt 0:00:08]} Rb7 {[%emt 0:00:12]} 60. e4 {[%emt 0:00:09]} fxe4 {[%emt 0:00:10]} 61. Kxe4 {[%emt 0:00:03]} Rh7 {[%emt 0:00:03]} 62. Kf4 {[%emt 0:00:03]} Rxh6 {[%emt 0:00:02]} 63. Kg4 {[%emt 0:00:02]} Rh8 {[%emt 0:00:06]} 64. Kf4 {[%emt 0:00:04]} Rxh4+ {[%emt 0:00:04]} 65. Ke3 {[%emt 0:00:03]} Kf5 {[%emt 0:00:04]} 66. Kd3 {[%emt 0:00:04]} Rh3+ {[%emt 0:00:02]} 67. Kc4 {[%emt 0:00:02]} Ke4 {[%emt 0:00:02]} 68. Kc5 {[%emt 0:00:07]} Rc3+ {[%emt 0:00:08]} 69. Kd6 {[%emt 0:00:04]} Kxd4 {[%emt 0:00:05]} 70. Kxe6 {[%emt 0:00:03]} Rc5 {[%emt 0:00:03]} 71. Kd6 {[%emt 0:00:02]} Rd5+ {[%emt 0:00:05]} 72. Ke6 {[%emt 0:00:03]} Ke4 {[%emt 0:00:03]} 73. Kf6 {[%emt 0:00:03]} Re5 {[%emt 0:00:01]} 74. Kg6 {[%emt 0:00:02]} Kf4 {[%emt 0:00:02]} 75. Kf6 {[%emt 0:00:03]} Ke4 {[%emt 0:00:02]} 76. Kg6 {[%emt 0:00:02]} Rf5 {[%emt 0:00:02]} 77. Kg7 {[%emt 0:00:05]} Ke5 {[%emt 0:00:01]} 78. Kg6 {[%emt 0:00:02]} Ke6 {[%emt 0:00:02]} 79. Kg7 {[%emt 0:00:04]} Rf6 {[%emt 0:00:02]} 80. Kh7 {[%emt 0:00:05]} Kf7 {[%emt 0:00:06]} 81. Kh8 {[%emt 0:00:03]} Rh6# {[%emt 0:00:03]} 0-1